[Event "Titled Tuesday Blitz August 16 Late 2022"]
[White "Sailer, Mike"]
[Black "Ardila, Oscar Humberto"]
[WhiteFideId "2012901"]
[BlackFideId "4404742"]
[WhiteElo "2109"]
[BlackElo "1939"]
[Result "0-1"]
[Round "11"]
[TimeControl "180+1"]
[Date "2022.08.18"]
[WhiteClock "0:00:00"]
[BlackClock "0:00:00"]

1. d4 {[%clk 0:00:00]}  Nf6 {[%clk 0:00:00]} 2. Nc3 {[%clk 0:00:00]}  d5 {[%clk 0:00:00]} 3. Bf4 {[%clk 0:00:00]}  e6 {[%clk 0:00:00]} 4. e3 {[%clk 0:00:00]}  Bb4 {[%clk 0:00:00]} 5. Ne2 {[%clk 0:00:00]}  O-O {[%clk 0:00:00]} 6. a3 {[%clk 0:00:00]}  Ba5 {[%clk 0:00:00]} 7. b4 {[%clk 0:00:00]}  Bb6 {[%clk 0:00:00]} 8. Na4 {[%clk 0:00:00]}  Nbd7 {[%clk 0:00:00]} 9. Nxb6 {[%clk 0:00:00]}  axb6 {[%clk 0:00:00]} 10. Nc1 {[%clk 0:00:00]}  Re8 {[%clk 0:00:00]} 11. Bd3 {[%clk 0:00:00]}  e5 {[%clk 0:00:00]} 12. dxe5 {[%clk 0:00:00]}  Nxe5 {[%clk 0:00:00]} 13. Be2 {[%clk 0:00:00]}  c5 {[%clk 0:00:00]} 14. bxc5 {[%clk 0:00:00]}  bxc5 {[%clk 0:00:00]} 15. O-O {[%clk 0:00:00]}  Bf5 {[%clk 0:00:00]} 16. Nd3 {[%clk 0:00:00]}  Bxd3 {[%clk 0:00:00]} 17. cxd3 {[%clk 0:00:00]}  Qd7 {[%clk 0:00:00]} 18. Qb3 {[%clk 0:00:00]}  b5 {[%clk 0:00:00]} 19. Rfb1 {[%clk 0:00:00]}  Ng6 {[%clk 0:00:00]} 20. Bg3 {[%clk 0:00:00]}  Ra5 {[%clk 0:00:00]} 21. d4 {[%clk 0:00:00]}  c4 {[%clk 0:00:00]} 22. Qb4 {[%clk 0:00:00]}  Rea8 {[%clk 0:00:00]} 23. Bf3 {[%clk 0:00:00]}  Ne4 {[%clk 0:00:00]} 24. Bxe4 {[%clk 0:00:00]}  dxe4 {[%clk 0:00:00]} 25. Bd6 {[%clk 0:00:00]}  Nh4 {[%clk 0:00:00]} 26. Bg3 {[%clk 0:00:00]}  Ng6 {[%clk 0:00:00]} 27. h3 {[%clk 0:00:00]}  Ne7 {[%clk 0:00:00]} 28. a4 {[%clk 0:00:00]}  Nd5 {[%clk 0:00:00]} 29. Qc5 {[%clk 0:00:00]}  Rxa4 {[%clk 0:00:00]} 30. Rxa4 {[%clk 0:00:00]}  bxa4 {[%clk 0:00:00]} 31. Qxc4 {[%clk 0:00:00]}  a3 {[%clk 0:00:00]} 32. Ra1 {[%clk 0:00:00]}  h5 {[%clk 0:00:00]} 33. Qb3 {[%clk 0:00:00]}  h4 {[%clk 0:00:00]} 34. Be5 {[%clk 0:00:00]}  f6 {[%clk 0:00:00]} 35. Bf4 {[%clk 0:00:00]}  g5 {[%clk 0:00:00]} 36. Bh2 {[%clk 0:00:00]}  Kg7 {[%clk 0:00:00]} 37. Rxa3 {[%clk 0:00:00]}  Rxa3 {[%clk 0:00:00]} 38. Qxa3 {[%clk 0:00:00]}  Qb7 {[%clk 0:00:00]} 39. Qa1 {[%clk 0:00:00]}  Kg6 {[%clk 0:00:00]} 40. Kh1 {[%clk 0:00:00]}  Qb3 {[%clk 0:00:00]} 41. Bd6 {[%clk 0:00:00]}  Qc2 {[%clk 0:00:00]} 42. Kg1 {[%clk 0:00:00]}  Nc3 {[%clk 0:00:00]} 43. Bc5 {[%clk 0:00:00]}  Ne2+ {[%clk 0:00:00]} 44. Kh1 {[%clk 0:00:00]}  Nc3 {[%clk 0:00:00]} 45. Qf1 {[%clk 0:00:00]}  Nd5 {[%clk 0:00:00]} 46. Kg1 {[%clk 0:00:00]}  Qd2 {[%clk 0:00:00]} 47. Qa6 {[%clk 0:00:00]}  Qe1+ {[%clk 0:00:00]} 48. Qf1 {[%clk 0:00:00]}  Qd2 {[%clk 0:00:00]} 49. Qa1 {[%clk 0:00:00]}  Nc3 {[%clk 0:00:00]} 50. Qf1 {[%clk 0:00:00]}  Ne2+ {[%clk 0:00:00]} 51. Kh1 {[%clk 0:00:00]}  f5 {[%clk 0:00:00]} 52. Qa1 {[%clk 0:00:00]}  Kh5 {[%clk 0:00:00]} 53. Qf1 {[%clk 0:00:00]}  f4 {[%clk 0:00:00]} 54. exf4 {[%clk 0:00:00]}  gxf4 {[%clk 0:00:00]} 55. Kh2 {[%clk 0:00:00]}  f3 {[%clk 0:00:00]} 56. gxf3 {[%clk 0:00:00]}  exf3 {[%clk 0:00:00]} 57. Qb1 {[%clk 0:00:00]}  Qf4+ {[%clk 0:00:00]} 58. Kh1 {[%clk 0:00:00]}  Qc1+ {[%clk 0:00:00]} 59. Qxc1 {[%clk 0:00:00]}  Nxc1 {[%clk 0:00:00]} 60. Kg1 {[%clk 0:00:00]}  Kg5 {[%clk 0:00:00]} 61. Kf1 {[%clk 0:00:00]}  Kf4 {[%clk 0:00:00]} 62. Ke1 {[%clk 0:00:00]}  Nd3+ {[%clk 0:00:00]} 63. Kd2 {[%clk 0:00:00]}  Nxf2 {[%clk 0:00:00]} 64. d5 {[%clk 0:00:00]}  Ne4+ {[%clk 0:00:00]} 0-1


[Site "https://www.chess.com"]

[Event "Titled Tuesday Blitz August 16 Late 2022"]
[White "Shapiro, Daniel"]
[Black "Mirimanian, Hayk"]
[WhiteFideId "2001780"]
[BlackFideId "4700180"]
[WhiteElo "2284"]
[BlackElo "2280"]
[Result "1-0"]
[Round "11"]
[TimeControl "180+1"]
[Date "2022.08.18"]
[WhiteClock "0:00:00"]
[BlackClock "0:00:00"]

1. d4 {[%clk 0:00:00]}  d5 {[%clk 0:00:00]} 2. c4 {[%clk 0:00:00]}  e6 {[%clk 0:00:00]} 3. Nf3 {[%clk 0:00:00]}  Nf6 {[%clk 0:00:00]} 4. g3 {[%clk 0:00:00]}  Bb4+ {[%clk 0:00:00]} 5. Bd2 {[%clk 0:00:00]}  a5 {[%clk 0:00:00]} 6. Bg2 {[%clk 0:00:00]}  dxc4 {[%clk 0:00:00]} 7. Qc2 {[%clk 0:00:00]}  b5 {[%clk 0:00:00]} 8. Ne5 {[%clk 0:00:00]}  Nd5 {[%clk 0:00:00]} 9. a3 {[%clk 0:00:00]}  Bxd2+ {[%clk 0:00:00]} 10. Nxd2 {[%clk 0:00:00]}  f6 {[%clk 0:00:00]} 11. Nef3 {[%clk 0:00:00]}  O-O {[%clk 0:00:00]} 12. O-O {[%clk 0:00:00]}  Bb7 {[%clk 0:00:00]} 13. e4 {[%clk 0:00:00]}  Nb6 {[%clk 0:00:00]} 14. Rad1 {[%clk 0:00:00]}  Qe7 {[%clk 0:00:00]} 15. Rfe1 {[%clk 0:00:00]}  Rd8 {[%clk 0:00:00]} 16. a4 {[%clk 0:00:00]}  c6 {[%clk 0:00:00]} 17. b3 {[%clk 0:00:00]}  cxb3 {[%clk 0:00:00]} 18. Qxb3 {[%clk 0:00:00]}  Nxa4 {[%clk 0:00:00]} 19. Bh3 {[%clk 0:00:00]}  Re8 {[%clk 0:00:00]} 20. e5 {[%clk 0:00:00]}  f5 {[%clk 0:00:00]} 21. Bxf5 {[%clk 0:00:00]}  Qf7 {[%clk 0:00:00]} 22. Be4 {[%clk 0:00:00]}  Nb6 {[%clk 0:00:00]} 23. Bxh7+ {[%clk 0:00:00]}  Kh8 {[%clk 0:00:00]} 24. Qd3 {[%clk 0:00:00]}  Nd5 {[%clk 0:00:00]} 25. Bg6 {[%clk 0:00:00]}  Qe7 {[%clk 0:00:00]} 26. Bxe8 {[%clk 0:00:00]}  Qxe8 {[%clk 0:00:00]} 27. Re4 {[%clk 0:00:00]}  Kg8 {[%clk 0:00:00]} 28. Rh4 {[%clk 0:00:00]}  Kf7 {[%clk 0:00:00]} 29. Qh7 {[%clk 0:00:00]}  Qg8 {[%clk 0:00:00]} 30. Ng5+ {[%clk 0:00:00]}  Kf8 {[%clk 0:00:00]} 31. Qg6 {[%clk 0:00:00]}  Ke7 {[%clk 0:00:00]} 32. Rh7 {[%clk 0:00:00]}  Kd8 {[%clk 0:00:00]} 33. Nxe6+ {[%clk 0:00:00]}  Kc8 {[%clk 0:00:00]} 34. Rxg7 {[%clk 0:00:00]}  Qh8 {[%clk 0:00:00]} 35. Rg8+ {[%clk 0:00:00]}  Qxg8 {[%clk 0:00:00]} 36. Qxg8+ {[%clk 0:00:00]}  Kd7 {[%clk 0:00:00]} 37. Nc5+ {[%clk 0:00:00]}  Kc7 {[%clk 0:00:00]} 38. h4 {[%clk 0:00:00]}  Kb6 {[%clk 0:00:00]} 39. Qd8+ {[%clk 0:00:00]}  Nc7 {[%clk 0:00:00]} 40. h5 {[%clk 0:00:00]}  Na6 {[%clk 0:00:00]} 41. Qe7 {[%clk 0:00:00]}  Nb4 {[%clk 0:00:00]} 42. h6 {[%clk 0:00:00]}  Nbd5 {[%clk 0:00:00]} 43. Qf7 {[%clk 0:00:00]}  Bc8 {[%clk 0:00:00]} 44. h7 {[%clk 0:00:00]}  Bg4 {[%clk 0:00:00]} 45. Re1 {[%clk 0:00:00]}  a4 {[%clk 0:00:00]} 46. Qg7 {[%clk 0:00:00]} 1-0


[Site "https://www.chess.com"]

[Event "Titled Tuesday Blitz August 16 Late 2022"]
[White "Sourath Biswas"]
[Black "Kalavannan, Koby"]
[WhiteFideId "35091484"]
[BlackFideId "425753"]
[WhiteElo "1777"]
[BlackElo "1927"]
[Result "1/2-1/2"]
[Round "11"]
[TimeControl "180+1"]
[Date "2022.08.16"]
[WhiteClock "0:01:52"]
[BlackClock "0:00:42"]

1. d4 {[%clk 0:03:00]}  Nf6 {[%clk 0:03:00]} 2. Bf4 {[%clk 0:02:55]}  g6 {[%clk 0:02:58]} 3. Nc3 {[%clk 0:02:54]}  d5 {[%clk 0:02:58]} 4. e3 {[%clk 0:02:54]}  c6 {[%clk 0:02:58]} 5. h4 {[%clk 0:02:49]}  h5 {[%clk 0:02:57]} 6. Nf3 {[%clk 0:02:48]}  Bg4 {[%clk 0:02:57]} 7. Be2 {[%clk 0:02:48]}  Bg7 {[%clk 0:02:53]} 8. Ne5 {[%clk 0:02:47]}  Bxe2 {[%clk 0:02:53]} 9. Qxe2 {[%clk 0:02:45]}  Nbd7 {[%clk 0:02:54]} 10. O-O-O {[%clk 0:02:43]}  a5 {[%clk 0:02:47]} 11. e4 {[%clk 0:02:37]}  Nxe4 {[%clk 0:02:45]} 12. Nxe4 {[%clk 0:02:38]}  dxe4 {[%clk 0:02:45]} 13. Qxe4 {[%clk 0:02:39]}  Nf6 {[%clk 0:02:46]} 14. Qd3 {[%clk 0:02:35]}  Nd5 {[%clk 0:02:46]} 15. Bg5 {[%clk 0:02:33]}  Nb4 {[%clk 0:02:40]} 16. Qc4 {[%clk 0:02:29]}  Qd5 {[%clk 0:02:39]} 17. Qxd5 {[%clk 0:02:27]}  cxd5 {[%clk 0:02:27]} 18. c3 {[%clk 0:02:27]}  Nc6 {[%clk 0:02:27]} 19. Nxc6 {[%clk 0:02:26]}  bxc6 {[%clk 0:02:27]} 20. Rhe1 {[%clk 0:02:27]}  e6 {[%clk 0:02:27]} 21. Bf4 {[%clk 0:02:24]}  Bh6 {[%clk 0:02:25]} 22. Bxh6 {[%clk 0:02:23]}  Rxh6 {[%clk 0:02:26]} 23. f4 {[%clk 0:02:15]}  Kd7 {[%clk 0:02:25]} 24. c4 {[%clk 0:02:14]}  Rhh8 {[%clk 0:02:09]} 25. c5 {[%clk 0:02:14]}  Rhb8 {[%clk 0:02:08]} 26. Rd3 {[%clk 0:02:14]}  Rb4 {[%clk 0:02:08]} 27. a3 {[%clk 0:02:11]}  Rb5 {[%clk 0:02:03]} 28. Ree3 {[%clk 0:02:09]}  a4 {[%clk 0:02:02]} 29. Kc2 {[%clk 0:02:05]}  Rab8 {[%clk 0:02:01]} 30. b4 {[%clk 0:02:05]}  axb3+ {[%clk 0:01:57]} 31. Rxb3 {[%clk 0:02:05]}  Rxb3 {[%clk 0:01:52]} 32. Rxb3 {[%clk 0:02:05]}  Rxb3 {[%clk 0:01:52]} 33. Kxb3 {[%clk 0:02:06]}  Kc7 {[%clk 0:01:52]} 34. Ka4 {[%clk 0:02:05]}  Kb7 {[%clk 0:01:50]} 35. Ka5 {[%clk 0:02:05]}  Ka7 {[%clk 0:01:49]} 36. g3 {[%clk 0:02:00]}  Kb7 {[%clk 0:01:48]} 37. Kb4 {[%clk 0:01:58]}  Ka6 {[%clk 0:01:46]} 38. a4 {[%clk 0:01:58]}  Kb7 {[%clk 0:01:45]} 39. a5 {[%clk 0:01:52]}  Ka7 {[%clk 0:01:43]} 40. Ka4 {[%clk 0:01:53]}  Ka6 {[%clk 0:01:43]} 41. Kb4 {[%clk 0:01:54]}  f6 {[%clk 0:01:12]} 42. Ka4 {[%clk 0:01:52]}  Kb7 {[%clk 0:00:42]} 43. Kb4 {[%clk 0:01:51]}  Ka6 {[%clk 0:00:42]} 44. Ka4 {[%clk 0:01:51]}  Kb7 {[%clk 0:00:41]} 45. Kb4 {[%clk 0:01:52]}  Ka6 {[%clk 0:00:42]} 1/2-1/2


[Site "https://www.chess.com"]

[Event "Titled Tuesday Blitz August 16 Late 2022"]
[White "Tanenbaum, Zachary"]
[Black "Martin Barcelo, Carles"]
[WhiteFideId "2060850"]
[BlackFideId "24561444"]
[WhiteElo "2175"]
[BlackElo "1922"]
[Result "0-1"]
[Round "11"]
[TimeControl "180+1"]
[Date "2022.08.18"]
[WhiteClock "0:00:00"]
[BlackClock "0:00:00"]

1. b3 {[%clk 0:00:00]}  Nf6 {[%clk 0:00:00]} 2. Bb2 {[%clk 0:00:00]}  g6 {[%clk 0:00:00]} 3. e4 {[%clk 0:00:00]}  d6 {[%clk 0:00:00]} 4. d3 {[%clk 0:00:00]}  Bg7 {[%clk 0:00:00]} 5. Nd2 {[%clk 0:00:00]}  O-O {[%clk 0:00:00]} 6. Ngf3 {[%clk 0:00:00]}  c5 {[%clk 0:00:00]} 7. Be2 {[%clk 0:00:00]}  Nc6 {[%clk 0:00:00]} 8. O-O {[%clk 0:00:00]}  Rb8 {[%clk 0:00:00]} 9. h3 {[%clk 0:00:00]}  b5 {[%clk 0:00:00]} 10. d4 {[%clk 0:00:00]}  cxd4 {[%clk 0:00:00]} 11. Nxd4 {[%clk 0:00:00]}  Nxd4 {[%clk 0:00:00]} 12. Bxd4 {[%clk 0:00:00]}  b4 {[%clk 0:00:00]} 13. f4 {[%clk 0:00:00]}  a5 {[%clk 0:00:00]} 14. Bd3 {[%clk 0:00:00]}  Bb7 {[%clk 0:00:00]} 15. Qe2 {[%clk 0:00:00]}  Nd7 {[%clk 0:00:00]} 16. e5 {[%clk 0:00:00]}  dxe5 {[%clk 0:00:00]} 17. fxe5 {[%clk 0:00:00]}  Nf6 {[%clk 0:00:00]} 18. Ba7 {[%clk 0:00:00]}  Nh5 {[%clk 0:00:00]} 19. Qe3 {[%clk 0:00:00]}  Ra8 {[%clk 0:00:00]} 20. Bc4 {[%clk 0:00:00]}  Bxe5 {[%clk 0:00:00]} 21. Bb6 {[%clk 0:00:00]}  Qd6 {[%clk 0:00:00]} 22. Nf3 {[%clk 0:00:00]}  Bxf3 {[%clk 0:00:00]} 23. gxf3 {[%clk 0:00:00]}  Bxa1 {[%clk 0:00:00]} 24. Rxa1 {[%clk 0:00:00]}  Qg3+ {[%clk 0:00:00]} 25. Kf1 {[%clk 0:00:00]}  Qxh3+ {[%clk 0:00:00]} 26. Kg1 {[%clk 0:00:00]}  Qg3+ {[%clk 0:00:00]} 27. Kf1 {[%clk 0:00:00]}  Nf4 {[%clk 0:00:00]} 28. Bd4 {[%clk 0:00:00]}  Qg5 {[%clk 0:00:00]} 29. Kf2 {[%clk 0:00:00]}  Qg2+ {[%clk 0:00:00]} 30. Ke1 {[%clk 0:00:00]}  Qg5 {[%clk 0:00:00]} 31. Kd2 {[%clk 0:00:00]}  Rad8 {[%clk 0:00:00]} 32. Rg1 {[%clk 0:00:00]}  Rxd4+ {[%clk 0:00:00]} 33. Qxd4 {[%clk 0:00:00]}  Ne6+ {[%clk 0:00:00]} 34. Rxg5 {[%clk 0:00:00]}  Nxd4 {[%clk 0:00:00]} 35. Rxa5 {[%clk 0:00:00]}  Nxf3+ {[%clk 0:00:00]} 36. Ke3 {[%clk 0:00:00]}  Nh4 {[%clk 0:00:00]} 37. Bd3 {[%clk 0:00:00]}  e6 {[%clk 0:00:00]} 38. Rb5 {[%clk 0:00:00]}  Nf5+ {[%clk 0:00:00]} 39. Bxf5 {[%clk 0:00:00]}  exf5 {[%clk 0:00:00]} 40. Rxb4 {[%clk 0:00:00]}  Rc8 {[%clk 0:00:00]} 41. c4 {[%clk 0:00:00]}  h5 {[%clk 0:00:00]} 42. a4 {[%clk 0:00:00]}  Kg7 {[%clk 0:00:00]} 43. a5 {[%clk 0:00:00]}  Kf6 {[%clk 0:00:00]} 44. a6 {[%clk 0:00:00]}  Ra8 {[%clk 0:00:00]} 45. Rb6+ {[%clk 0:00:00]}  Kg5 {[%clk 0:00:00]} 46. c5 {[%clk 0:00:00]}  h4 {[%clk 0:00:00]} 47. c6 {[%clk 0:00:00]}  h3 {[%clk 0:00:00]} 48. Kf3 {[%clk 0:00:00]}  h2 {[%clk 0:00:00]} 49. Kg2 {[%clk 0:00:00]}  Rh8 {[%clk 0:00:00]} 50. Kh1 {[%clk 0:00:00]}  f4 {[%clk 0:00:00]} 51. a7 {[%clk 0:00:00]}  f3 {[%clk 0:00:00]} 52. Rb5+ {[%clk 0:00:00]}  Kg4 {[%clk 0:00:00]} 53. Rb7 {[%clk 0:00:00]}  f2 {[%clk 0:00:00]} 54. Rxf7 {[%clk 0:00:00]}  Kg3 {[%clk 0:00:00]} 55. b4 {[%clk 0:00:00]}  Rd8 {[%clk 0:00:00]} 56. Rf3+ {[%clk 0:00:00]}  Kxf3 {[%clk 0:00:00]} 57. Kxh2 {[%clk 0:00:00]}  f1=Q {[%clk 0:00:00]} 58. c7 {[%clk 0:00:00]}  Qg2# {[%clk 0:00:00]} 0-1


[Site "https://www.chess.com"]

[Event "Titled Tuesday Blitz August 16 Late 2022"]
[White "Thomforde-Toates, Noah"]
[Black "Miszler, Levente"]
[WhiteFideId "30951992"]
[BlackFideId "763276"]
[WhiteElo "2610"]
[BlackElo "1966"]
[Result "1/2-1/2"]
[Round "11"]
[TimeControl "180+1"]
[Date "2022.08.16"]
[WhiteClock "0:00:29"]
[BlackClock "0:00:09"]

1. d4 {[%clk 0:02:57]}  Nf6 {[%clk 0:02:56]} 2. Nc3 {[%clk 0:02:57]}  d5 {[%clk 0:02:51]} 3. Bf4 {[%clk 0:02:57]}  c6 {[%clk 0:02:50]} 4. e3 {[%clk 0:02:56]}  g6 {[%clk 0:02:49]} 5. Bd3 {[%clk 0:02:54]}  Bg7 {[%clk 0:02:50]} 6. Nf3 {[%clk 0:02:54]}  O-O {[%clk 0:02:50]} 7. O-O {[%clk 0:02:53]}  Nh5 {[%clk 0:02:47]} 8. Bg3 {[%clk 0:02:53]}  Nxg3 {[%clk 0:02:46]} 9. hxg3 {[%clk 0:02:52]}  Nd7 {[%clk 0:02:47]} 10. e4 {[%clk 0:02:52]}  dxe4 {[%clk 0:02:41]} 11. Nxe4 {[%clk 0:02:51]}  e5 {[%clk 0:02:41]} 12. dxe5 {[%clk 0:02:49]}  Nxe5 {[%clk 0:02:42]} 13. Nxe5 {[%clk 0:02:49]}  Bxe5 {[%clk 0:02:43]} 14. c3 {[%clk 0:02:49]}  Bf5 {[%clk 0:02:37]} 15. Nc5 {[%clk 0:02:45]}  Bxd3 {[%clk 0:02:34]} 16. Nxd3 {[%clk 0:02:41]}  Bd6 {[%clk 0:02:27]} 17. Qf3 {[%clk 0:02:41]}  Qc7 {[%clk 0:02:23]} 18. Rad1 {[%clk 0:02:38]}  Rfe8 {[%clk 0:02:22]} 19. Rfe1 {[%clk 0:02:35]}  Rad8 {[%clk 0:02:22]} 20. Qf6 {[%clk 0:02:20]}  Be7 {[%clk 0:02:06]} 21. Qe5 {[%clk 0:02:19]}  Qxe5 {[%clk 0:01:55]} 22. Nxe5 {[%clk 0:02:18]}  Bd6 {[%clk 0:01:30]} 23. Nc4 {[%clk 0:02:11]}  Rxe1+ {[%clk 0:01:30]} 24. Rxe1 {[%clk 0:02:11]}  Bc5 {[%clk 0:01:29]} 25. b4 {[%clk 0:02:09]}  b5 {[%clk 0:01:19]} 26. Na5 {[%clk 0:02:08]}  Bb6 {[%clk 0:01:17]} 27. Nxc6 {[%clk 0:02:08]}  Rd2 {[%clk 0:01:17]} 28. Re8+ {[%clk 0:01:57]}  Kg7 {[%clk 0:01:17]} 29. Re5 {[%clk 0:01:55]}  Rxf2 {[%clk 0:01:04]} 30. Kh2 {[%clk 0:01:49]}  a6 {[%clk 0:00:47]} 31. Re7 {[%clk 0:01:46]}  Rxa2 {[%clk 0:00:42]} 32. Rb7 {[%clk 0:01:45]}  Be3 {[%clk 0:00:35]} 33. Ne5 {[%clk 0:01:41]}  Bd2 {[%clk 0:00:30]} 34. Rxf7+ {[%clk 0:01:40]}  Kg8 {[%clk 0:00:29]} 35. Rc7 {[%clk 0:01:37]}  Rc2 {[%clk 0:00:27]} 36. Ng4 {[%clk 0:01:34]}  Rxc3 {[%clk 0:00:19]} 37. Nf6+ {[%clk 0:01:33]}  Kf8 {[%clk 0:00:18]} 38. Nxh7+ {[%clk 0:01:33]}  Ke8 {[%clk 0:00:19]} 39. Nf6+ {[%clk 0:01:33]}  Kf8 {[%clk 0:00:17]} 40. Ra7 {[%clk 0:01:33]}  Rc6 {[%clk 0:00:16]} 41. Nd7+ {[%clk 0:01:32]}  Ke8 {[%clk 0:00:16]} 42. Ne5 {[%clk 0:01:33]}  Re6 {[%clk 0:00:16]} 43. Nd3 {[%clk 0:01:31]}  Rd6 {[%clk 0:00:15]} 44. Nc5 {[%clk 0:01:31]}  Bxb4 {[%clk 0:00:15]} 45. Nxa6 {[%clk 0:01:30]}  Bd2 {[%clk 0:00:14]} 46. Nc7+ {[%clk 0:01:30]}  Kd8 {[%clk 0:00:14]} 47. Nxb5 {[%clk 0:01:31]}  Rd5 {[%clk 0:00:10]} 48. Ra8+ {[%clk 0:01:20]}  Kd7 {[%clk 0:00:09]} 49. Na3 {[%clk 0:01:19]}  Be3 {[%clk 0:00:08]} 50. g4 {[%clk 0:01:17]}  Bf4+ {[%clk 0:00:08]} 51. Kg1 {[%clk 0:01:04]}  Bd6 {[%clk 0:00:07]} 52. Nc4 {[%clk 0:01:01]}  Bc5+ {[%clk 0:00:07]} 53. Kf1 {[%clk 0:01:00]}  Rd4 {[%clk 0:00:08]} 54. Ne5+ {[%clk 0:01:00]}  Ke6 {[%clk 0:00:08]} 55. Nxg6 {[%clk 0:00:59]}  Rxg4 {[%clk 0:00:08]} 56. Ra6+ {[%clk 0:00:58]}  Kf5 {[%clk 0:00:07]} 57. Nh8 {[%clk 0:00:48]}  Rf4+ {[%clk 0:00:07]} 58. Ke1 {[%clk 0:00:45]}  Bb4+ {[%clk 0:00:07]} 59. Ke2 {[%clk 0:00:45]}  Kg4 {[%clk 0:00:07]} 60. Rg6+ {[%clk 0:00:44]}  Kh5 {[%clk 0:00:07]} 61. Rg8 {[%clk 0:00:43]}  Rg4 {[%clk 0:00:07]} 62. Rxg4 {[%clk 0:00:41]}  Kxg4 {[%clk 0:00:08]} 63. Kf1 {[%clk 0:00:41]}  Bc5 {[%clk 0:00:08]} 64. Nf7 {[%clk 0:00:41]}  Bd4 {[%clk 0:00:07]} 65. Nd6 {[%clk 0:00:41]}  Bc5 {[%clk 0:00:07]} 66. Ne4 {[%clk 0:00:38]}  Bd4 {[%clk 0:00:07]} 67. Ke2 {[%clk 0:00:37]}  Ba7 {[%clk 0:00:07]} 68. Kf1 {[%clk 0:00:37]}  Bb6 {[%clk 0:00:07]} 69. Nf6+ {[%clk 0:00:36]}  Kf5 {[%clk 0:00:07]} 70. Nd5 {[%clk 0:00:36]}  Ba7 {[%clk 0:00:07]} 71. Ne7+ {[%clk 0:00:33]}  Kg4 {[%clk 0:00:07]} 72. Nc6 {[%clk 0:00:32]}  Bb6 {[%clk 0:00:07]} 73. Ne5+ {[%clk 0:00:32]}  Kg3 {[%clk 0:00:07]} 74. Nc4 {[%clk 0:00:33]}  Ba7 {[%clk 0:00:07]} 75. Nd2 {[%clk 0:00:30]}  Bb6 {[%clk 0:00:07]} 76. Ne4+ {[%clk 0:00:30]}  Kg4 {[%clk 0:00:08]} 77. Ke2 {[%clk 0:00:30]}  Ba7 {[%clk 0:00:08]} 78. Kd3 {[%clk 0:00:29]}  Bb6 {[%clk 0:00:08]} 79. Ke2 {[%clk 0:00:29]}  Ba7 {[%clk 0:00:09]} 1/2-1/2


[Site "https://www.chess.com"]

[Event "Titled Tuesday Blitz August 16 Late 2022"]
[White "Urazayev, Arystanbek"]
[Black "Goryachkina, Aleksandra"]
[WhiteFideId "13709810"]
[BlackFideId "4147103"]
[WhiteElo "2441"]
[BlackElo "2426"]
[Result "0-1"]
[Round "11"]
[TimeControl "180+1"]
[Date "2022.08.16"]
[WhiteClock "0:00:02"]
[BlackClock "0:00:11"]

1. e4 {[%clk 0:03:00]}  e6 {[%clk 0:02:59]} 2. d4 {[%clk 0:03:00]}  d5 {[%clk 0:03:00]} 3. e5 {[%clk 0:03:01]}  c5 {[%clk 0:02:59]} 4. c3 {[%clk 0:03:01]}  Nc6 {[%clk 0:03:00]} 5. Nf3 {[%clk 0:03:02]}  Nge7 {[%clk 0:03:00]} 6. Bd3 {[%clk 0:03:01]}  cxd4 {[%clk 0:02:52]} 7. O-O {[%clk 0:03:01]}  dxc3 {[%clk 0:02:35]} 8. Nxc3 {[%clk 0:03:01]}  Ng6 {[%clk 0:02:34]} 9. Re1 {[%clk 0:02:57]}  Be7 {[%clk 0:02:33]} 10. a3 {[%clk 0:02:53]}  O-O {[%clk 0:02:32]} 11. b4 {[%clk 0:02:46]}  a6 {[%clk 0:02:31]} 12. Bb2 {[%clk 0:02:45]}  Bd7 {[%clk 0:02:23]} 13. Qd2 {[%clk 0:02:39]}  Rc8 {[%clk 0:02:21]} 14. Rad1 {[%clk 0:02:34]}  Qc7 {[%clk 0:02:11]} 15. h4 {[%clk 0:02:08]}  Nxh4 {[%clk 0:01:47]} 16. Nxh4 {[%clk 0:02:07]}  Bxh4 {[%clk 0:01:47]} 17. Qf4 {[%clk 0:02:05]}  Be7 {[%clk 0:01:40]} 18. Re3 {[%clk 0:02:01]}  f5 {[%clk 0:01:36]} 19. Rg3 {[%clk 0:01:46]}  Rf7 {[%clk 0:01:32]} 20. Be2 {[%clk 0:01:28]}  Bf8 {[%clk 0:01:19]} 21. Bh5 {[%clk 0:01:20]}  g6 {[%clk 0:01:14]} 22. Ne2 {[%clk 0:01:11]}  Bg7 {[%clk 0:01:11]} 23. Bf3 {[%clk 0:00:57]}  Bxe5 {[%clk 0:01:05]} 24. Bxe5 {[%clk 0:00:52]}  Qxe5 {[%clk 0:01:05]} 25. Qh6 {[%clk 0:00:53]}  Qg7 {[%clk 0:01:04]} 26. Qh4 {[%clk 0:00:50]}  Ne5 {[%clk 0:01:02]} 27. Nf4 {[%clk 0:00:44]}  Nxf3+ {[%clk 0:00:58]} 28. gxf3 {[%clk 0:00:45]}  Qf6 {[%clk 0:00:51]} 29. Qh2 {[%clk 0:00:41]}  Rg7 {[%clk 0:00:48]} 30. Qh6 {[%clk 0:00:25]}  Rf8 {[%clk 0:00:35]} 31. Nd3 {[%clk 0:00:20]}  e5 {[%clk 0:00:33]} 32. f4 {[%clk 0:00:20]}  exf4 {[%clk 0:00:29]} 33. Qxf4 {[%clk 0:00:20]}  Bc6 {[%clk 0:00:27]} 34. Ne5 {[%clk 0:00:09]}  Re8 {[%clk 0:00:26]} 35. Re1 {[%clk 0:00:08]}  Rge7 {[%clk 0:00:26]} 36. Rge3 {[%clk 0:00:08]}  g5 {[%clk 0:00:17]} 37. Qd4 {[%clk 0:00:06]}  f4 {[%clk 0:00:17]} 38. Nxc6 {[%clk 0:00:06]}  Qxd4 {[%clk 0:00:16]} 39. Rxe7 {[%clk 0:00:05]}  Rxe7 {[%clk 0:00:14]} 40. Nxe7+ {[%clk 0:00:04]}  Kf7 {[%clk 0:00:14]} 41. Nf5 {[%clk 0:00:05]}  Qd3 {[%clk 0:00:13]} 42. Nd6+ {[%clk 0:00:04]}  Kg7 {[%clk 0:00:12]} 43. Re7+ {[%clk 0:00:04]}  Kf6 {[%clk 0:00:12]} 44. Rxb7 {[%clk 0:00:03]}  Qd1+ {[%clk 0:00:11]} 45. Kg2 {[%clk 0:00:03]}  Qg4+ {[%clk 0:00:11]} 46. Kf1 {[%clk 0:00:04]}  f3 {[%clk 0:00:11]} 47. Ke1 {[%clk 0:00:03]}  Qg1+ {[%clk 0:00:11]} 48. Kd2 {[%clk 0:00:04]}  Qxf2+ {[%clk 0:00:12]} 49. Kc3 {[%clk 0:00:04]}  Qe1+ {[%clk 0:00:11]} 50. Kd4 {[%clk 0:00:03]}  f2 {[%clk 0:00:12]} 51. Rf7+ {[%clk 0:00:02]}  Ke6 {[%clk 0:00:12]} 52. Rf8 {[%clk 0:00:02]}  f1=Q {[%clk 0:00:11]} 53. Re8+ {[%clk 0:00:02]}  Kxd6 {[%clk 0:00:11]} 0-1


[Site "https://www.chess.com"]